fUST/lending_fUST_20260131
["ID","MTS","AMOUNT","RATE_DAILY","PERIOD"]
[404080120,1769794734272,-500.0,9.098e-05,2]
[404080121,1769794734302,-514.02635195,9.098e-05,2]
[404080122,1769794734332,-500.0,9.098e-05,2]
[404080123,1769794734361,-500.0,9.098e-05,2]
[404080124,1769794734391,-514.02635195,9.098e-05,2]
[404080125,1769794734420,-500.0,9.098e-05,2]
[404080126,1769794734448,-500.0,9.098e-05,2]
[404080127,1769794734568,-514.02635195,9.098e-05,2]
[404080128,1769794734600,-500.0,9.098e-05,2]
[404080129,1769794734630,-500.0,9.098e-05,2]
[404080130,1769794734658,-500.0,9.098e-05,2]
[404080131,1769794734687,-514.02635195,9.098e-05,2]
[404080132,1769794734842,-500.0,9.098e-05,2]
[404080133,1769794734874,-500.0,9.098e-05,2]
[404080134,1769794734905,-500.0,9.098e-05,2]
[404080135,1769794734936,-500.0,9.098e-05,2]
[404080136,1769794734967,-443.9045922,9.098e-05,2]
[404080137,1769794735832,-56.0954078,9.098e-05,2]
[404080138,1769794735855,-259.1638435,9.098e-05,2]
[404080139,1769794736846,-254.86250845,9.098e-05,2]
[404080140,1769794736869,-33.29750527,9.098e-05,2]
[404080141,1769794738791,-466.70249473,9.098e-05,2]
[404080142,1769794738820,-500.0,9.098e-05,2]
[404080143,1769794738850,-514.02635195,9.098e-05,2]
[404080144,1769794738879,-500.0,9.098e-05,2]
[404080145,1769794738910,-500.0,9.098e-05,2]
[404080146,1769794738943,-500.0,9.098e-05,2]
[404080147,1769794738976,-500.0,9.098e-05,2]
[404080148,1769794739007,-500.0,9.098e-05,2]
[404080149,1769794739039,-500.0,9.098e-05,2]
[404080150,1769794739074,-514.02635195,9.098e-05,2]
[404080151,1769794739173,-514.02635195,9.098e-05,2]
[404080152,1769794739202,-500.0,9.098e-05,2]
[404080153,1769794739231,-500.0,9.098e-05,2]
[404080154,1769794739262,-514.02635195,9.098e-05,2]
[404080155,1769794739289,-500.0,9.098e-05,2]
[404080156,1769794739317,-514.02635195,9.098e-05,2]
[404080157,1769794739344,-500.0,9.098e-05,2]
[404080158,1769794739372,-500.0,9.098e-05,2]
[404080159,1769794739402,-514.02635195,9.098e-05,2]
[404080160,1769794739430,-387.7991844,9.098e-05,2]
[404080161,1769794739533,-112.2008156,9.098e-05,2]
[404080162,1769794739561,-514.02635195,9.098e-05,2]
[404080163,1769794739689,-500.0,9.098e-05,2]
[404080164,1769794739718,-500.0,9.098e-05,2]
[404080165,1769794739747,-514.02635195,9.098e-05,2]
[404080166,1769794739774,-500.0,9.098e-05,2]
[404080167,1769794739802,-500.0,9.098e-05,2]
[404080168,1769794739831,-514.02635195,9.098e-05,2]
[404080169,1769794739858,-500.0,9.098e-05,2]
[404080170,1769794739888,-514.02635195,9.098e-05,2]
[404080171,1769794739917,-163.3975532,9.098e-05,2]
[404080172,1769794741995,-254.7,9.098e-05,2]
[404080173,1769794745111,-81.9024468,9.098e-05,2]
[404080174,1769794745142,-514.02635195,9.098e-05,2]
[404080175,1769794745172,-495.30033473,9.098e-05,2]
[404080176,1769794745200,-514.02635195,9.098e-05,2]
[404080177,1769794745228,-500.0,9.098e-05,2]
[404080178,1769794745254,-500.0,9.098e-05,2]
[404080179,1769794745283,-514.02635195,9.098e-05,2]
[404080180,1769794745312,-500.0,9.098e-05,2]
[404080181,1769794745340,-514.02635195,9.098e-05,2]
[404080182,1769794745369,-500.0,9.098e-05,2]
[404080183,1769794745403,-219.36726939,9.098e-05,2]
[404080184,1769794745509,-294.65908256,9.098e-05,2]
[404080185,1769794745539,-500.0,9.098e-05,2]
[404080186,1769794745567,-500.0,9.098e-05,2]
[404080187,1769794745596,-514.02635195,9.098e-05,2]
[404080188,1769794745625,-500.0,9.098e-05,2]
[404080189,1769794745655,-500.0,9.098e-05,2]
[404080190,1769794745685,-514.02635195,9.098e-05,2]
[404080191,1769794745712,-500.0,9.098e-05,2]
[404080192,1769794745742,-514.02635195,9.098e-05,2]
[404080193,1769794745773,-500.0,9.098e-05,2]
[404080194,1769794745871,-514.02635195,9.098e-05,2]
[404080195,1769794745904,-514.02635195,9.098e-05,2]
[404080196,1769794745936,-500.0,9.098e-05,2]
[404080197,1769794745965,-514.02635195,9.098e-05,2]
[404080198,1769794745994,-500.0,9.098e-05,2]
[404080199,1769794746024,-514.02635195,9.098e-05,2]
[404080200,1769794746054,-514.02635195,9.098e-05,2]
[404080201,1769794746085,-514.02635195,9.098e-05,2]
[404080202,1769794746113,-514.02635195,9.098e-05,2]
[404080203,1769794746143,-289.61472075,9.098e-05,2]
[404080204,1769794746222,-224.4116312,9.098e-05,2]
[404080205,1769794746254,-514.02635195,9.098e-05,2]
[404080206,1769794746283,-514.02635195,9.098e-05,2]
[404080207,1769794746315,-514.02635195,9.098e-05,2]
[404080208,1769794746346,-514.02635195,9.098e-05,2]
[404080209,1769794746378,-514.02635195,9.098e-05,2]
[404080210,1769794746527,-514.02635195,9.098e-05,2]
[404080211,1769794746558,-514.02635195,9.098e-05,2]
[404080212,1769794746588,-514.02635195,9.098e-05,2]
[404080213,1769794746618,-514.02635195,9.098e-05,2]
[404080214,1769794747164,298.7124025,9.097e-05,2]
[404080215,1769794747188,1.2875975,9.097e-05,2]
[404080216,1769794747320,9998.7224025,9.098e-05,2]
[404080217,1769794751415,-51.29489721,9.098e-05,2]
[404080218,1769794772799,1000.0,9.098e-05,2]
[404080219,1769794773731,190.42195989,9.098e-05,2]
[404080220,1769794804856,-150.14,9e-05,2]
[404080221,1769794804881,-4.06354698,9e-05,2]
[404080222,1769794806484,-146.07645302,9e-05,2]
[404080223,1769794806509,-6.40354698,9e-05,2]
[404080224,1769794807377,-143.73645302,9e-05,2]
[404080225,1769794807408,-546.0,9e-05,2]
[404080227,1769794809543,-150.14,9.1e-05,2]
[404080228,1769794809565,-51.00645302,9.1e-05,2]
[404080229,1769794812932,-99.13354698,9.1e-05,2]
[404080230,1769794812957,-136.92720172,9.1e-05,2]
[404080231,1769794823014,-13.21279828,9.1e-05,2]
[404080232,1769794902041,-5000.0,9.108e-05,2]
[404080233,1769794907582,0.01,9.108e-05,2]
[404080234,1769794907608,4999.99,9.108e-05,2]
[404080235,1769794915958,5000.0,9.108e-05,2]
[404080236,1769794931215,0.02,9.108e-05,2]
[404080237,1769794931237,4999.98,9.108e-05,2]
[404080238,1769794948732,-3862.61721897,9.108e-05,2]
[404080240,1769794954173,2274.77556206,9.108e-05,2]
[404080241,1769794954197,2725.22443794,9.108e-05,2]
[404080242,1769794977008,5000.0,9.108e-05,2]
[404080243,1769794999557,5000.0,9.108e-05,2]
[404080244,1769795009931,0.01,8.672e-05,2]
[404080245,1769795009952,397.3298252,8.672e-05,2]
[404080246,1769795021912,5000.0,9.108e-05,2]
[404080249,1769795045714,4602.6801748,9.108e-05,2]
[404080250,1769795045739,397.3198252,9.108e-05,2]
[404080251,1769795068251,4457.49259757,9.108e-05,2]
[404080252,1769795112170,2021.54484308,9.108e-05,2]
[404080260,1769795284508,5677.3539789,8.699e-05,2]
[404080261,1769795364149,-150.14,9.2e-05,2]
[404080262,1769795364171,-150.14,9.2e-05,2]
[404080263,1769795364192,-150.14,9.2e-05,2]
[404080264,1769795364215,-122.88152029,9.2e-05,2]
[404080265,1769795407474,-168.05,9e-05,2]
[404080266,1769795407505,-546.0,9e-05,2]
[404080320,1769795432894,-168.05,9.1e-05,2]
[404080322,1769795432903,-27.25847971,9.2e-05,2]
[404080324,1769795432913,-168.05,9.2e-05,2]
[404080326,1769795432923,-150.0,9.207e-05,2]
[404080328,1769795432932,-150.14,9.3e-05,2]
[404080330,1769795432942,-150.14,9.3e-05,2]
[404080332,1769795432952,-98.44286075,9.3e-05,2]
[404080335,1769795432969,-51.69713925,9.3e-05,2]
[404080337,1769795432979,-150.14,9.4e-05,2]
[404080339,1769795432989,-150.14,9.4e-05,2]
[404080341,1769795432999,-58.06767211,9.4e-05,2]
[404080343,1769795433010,-92.07232789,9.4e-05,2]
[404080345,1769795433019,-150.14,9.4e-05,2]
[404080347,1769795433029,-168.05,9.4e-05,2]
[404080349,1769795433041,-1200.0,9.499e-05,2]
[404080351,1769795433051,-150.14,9.5e-05,2]
[404080353,1769795433060,-150.14,9.5e-05,2]
[404080355,1769795433069,-150.14,9.5e-05,2]
[404080357,1769795433079,-168.05,9.5e-05,2]
[404080359,1769795433088,-300.0,9.598e-05,2]
[404080361,1769795433098,-300.0,9.598e-05,2]
[404080363,1769795433107,-300.0,9.598e-05,2]
[404080365,1769795433116,-300.0,9.598e-05,2]
[404080367,1769795433131,-300.0,9.598e-05,2]
[404080369,1769795433141,-150.14,9.6e-05,2]
[404080371,1769795433150,-150.14,9.6e-05,2]
[404080373,1769795433160,-150.14,9.6e-05,2]
[404080374,1769795433170,-150.14,9.6e-05,2]
[404080376,1769795433179,-502.082355,9.6e-05,2]
[404080377,1769795433188,-150.14,9.7e-05,2]
[404080378,1769795433199,-150.14,9.7e-05,2]
[404080379,1769795433214,-150.14,9.7e-05,2]
[404080380,1769795433224,-150.14,9.8e-05,2]
[404080381,1769795433234,-999.60015994,9.996e-05,2]
[404080382,1769795433244,-500.0,9.996e-05,2]
[404080383,1769795433253,-598.60779467,9.996e-05,2]
[404080384,1769795433262,-500.0,9.999e-05,2]
[404080385,1769795433273,-104316.27540037,0.0001,2]
[404080386,1769795433284,-2064.5055936,0.0001,2]
[404080413,1769795438409,-500.0,9.996e-05,2]
[404080414,1769795438419,-296.32429182,9.996e-05,2]
[404080415,1769795438429,-500.0,9.996e-05,2]
[404080416,1769795438439,-355.78506178,9.996e-05,2]
[404080418,1769795438448,-202.54229406,9.996e-05,2]
[404080420,1769795438461,-297.45770594,9.996e-05,2]
[404080422,1769795438470,-500.0,9.996e-05,2]
[404080423,1769795438479,-500.0,9.996e-05,2]
[404080424,1769795438488,-500.0,9.996e-05,2]
[404080425,1769795438497,-500.0,9.996e-05,2]
[404080426,1769795438506,-500.0,9.996e-05,2]
[404080427,1769795438515,-500.0,9.996e-05,2]
[404080428,1769795438525,-500.0,9.996e-05,2]
[404080429,1769795438534,-500.0,9.996e-05,2]
[404080430,1769795438544,-500.0,9.996e-05,2]
[404080431,1769795438554,-500.0,9.996e-05,2]
[404080432,1769795438563,-549.05329457,9.996e-05,2]
[404080433,1769795438572,-500.0,9.996e-05,2]
[404080434,1769795438582,-500.0,9.996e-05,2]
[404080435,1769795438593,-259.66679259,9.996e-05,2]
[404080436,1769795438602,-500.0,9.996e-05,2]
[404080437,1769795438612,-500.0,9.996e-05,2]
[404080438,1769795438621,-500.0,9.996e-05,2]
[404080439,1769795438631,-500.0,9.996e-05,2]
[404080440,1769795438640,-537.80883736,9.996e-05,2]
[404080441,1769795438650,-500.0,9.996e-05,2]
[404080442,1769795438659,-500.0,9.996e-05,2]
[404080443,1769795438668,-500.0,9.996e-05,2]
[404080444,1769795438678,-500.0,9.996e-05,2]
[404080445,1769795438687,-500.0,9.996e-05,2]
[404080446,1769795438696,-500.0,9.996e-05,2]
[404080447,1769795438706,-500.0,9.996e-05,2]
[404080448,1769795438715,-500.0,9.996e-05,2]
[404080449,1769795438724,-500.0,9.996e-05,2]
[404080450,1769795438733,-500.0,9.996e-05,2]
[404080451,1769795438743,-500.0,9.996e-05,2]
[404080452,1769795438752,-500.0,9.996e-05,2]
[404080453,1769795438761,-500.0,9.996e-05,2]
[404080454,1769795438770,-500.0,9.996e-05,2]
[404080455,1769795438780,-500.0,9.996e-05,2]
[404080456,1769795438790,-500.0,9.996e-05,2]
[404080457,1769795438800,-500.0,9.996e-05,2]
[404080458,1769795438809,-500.0,9.996e-05,2]
[404080459,1769795438819,-500.0,9.996e-05,2]
[404080460,1769795438829,-500.0,9.996e-05,2]
[404080461,1769795438838,-500.0,9.996e-05,2]
[404080462,1769795438847,-500.0,9.996e-05,2]
[404080463,1769795438857,-500.0,9.996e-05,2]
[404080464,1769795438867,-500.0,9.996e-05,2]
[404080465,1769795438876,-500.0,9.996e-05,2]
[404080466,1769795438887,-500.0,9.996e-05,2]
[404080467,1769795438898,-500.0,9.996e-05,2]
[404080468,1769795438907,-500.0,9.996e-05,2]
[404080469,1769795438917,-500.0,9.996e-05,2]
[404080470,1769795438927,-500.0,9.996e-05,2]
[404080471,1769795438936,-500.0,9.996e-05,2]
[404080472,1769795438946,-500.0,9.996e-05,2]
[404080473,1769795438956,-500.0,9.996e-05,2]
[404080474,1769795438966,-500.0,9.996e-05,2]
[404080475,1769795438976,-500.0,9.996e-05,2]
[404080476,1769795438986,-500.0,9.996e-05,2]
[404080477,1769795438995,-500.0,9.996e-05,2]
[404080478,1769795439004,-500.0,9.996e-05,2]
[404080479,1769795439014,-500.0,9.996e-05,2]
[404080480,1769795439023,-500.0,9.996e-05,2]
[404080481,1769795439033,-500.0,9.996e-05,2]
[404080482,1769795439043,-500.0,9.996e-05,2]
[404080483,1769795439052,-500.0,9.996e-05,2]
[404080484,1769795439066,-500.0,9.996e-05,2]
[404080485,1769795439076,-500.0,9.996e-05,2]
[404080486,1769795439085,-500.0,9.996e-05,2]
[404080487,1769795439095,-500.0,9.996e-05,2]
[404080488,1769795439103,-152.5790564,9.996e-05,2]
[404080489,1769795439116,-347.4209436,9.996e-05,2]
[404080490,1769795439126,-500.0,9.996e-05,2]
[404080491,1769795439140,-500.0,9.996e-05,2]
[404080492,1769795439149,-500.0,9.996e-05,2]
[404080493,1769795439158,-500.0,9.996e-05,2]
[404080494,1769795439167,-500.0,9.996e-05,2]
[404080495,1769795439179,-500.0,9.996e-05,2]
[404080496,1769795439188,-500.0,9.996e-05,2]
[404080497,1769795439197,-500.0,9.996e-05,2]
[404080498,1769795439208,-500.0,9.996e-05,2]
[404080499,1769795439218,-500.0,9.996e-05,2]
[404080500,1769795439226,-500.0,9.996e-05,2]
[404080501,1769795439235,-500.0,9.996e-05,2]
[404080502,1769795439245,-500.0,9.996e-05,2]
[404080503,1769795439254,-500.0,9.996e-05,2]
[404080504,1769795439263,-500.0,9.996e-05,2]
[404080505,1769795439273,-500.0,9.996e-05,2]
[404080506,1769795439282,-500.0,9.996e-05,2]
[404080507,1769795439293,-130.74885643,9.996e-05,2]
[404080508,1769795439304,-369.25114357,9.996e-05,2]
[404080509,1769795439314,-500.0,9.996e-05,2]
[404080510,1769795439323,-500.0,9.996e-05,2]
[404080511,1769795439332,-500.0,9.996e-05,2]
[404080512,1769795439342,-500.0,9.996e-05,2]
[404080513,1769795439351,-500.0,9.996e-05,2]
[404080514,1769795439361,-500.0,9.996e-05,2]
[404080515,1769795439370,-500.0,9.996e-05,2]
[404080516,1769795439382,-500.0,9.996e-05,2]
[404080517,1769795439391,-500.0,9.996e-05,2]
[404080518,1769795439400,-352.42280699,9.996e-05,2]
[404080519,1769795439410,-500.0,9.996e-05,2]
[404080520,1769795439419,-565.62016586,9.996e-05,2]
[404080521,1769795439428,-500.0,9.996e-05,2]
[404080522,1769795439437,-500.0,9.996e-05,2]
[404080523,1769795439446,-500.0,9.996e-05,2]
[404080524,1769795439456,-500.0,9.996e-05,2]
[404080525,1769795439466,-500.0,9.996e-05,2]
[404080526,1769795439476,-500.0,9.996e-05,2]
[404080527,1769795439485,-500.0,9.996e-05,2]
[404080528,1769795439494,-500.0,9.996e-05,2]
[404080529,1769795439504,-500.0,9.996e-05,2]
[404080530,1769795439513,-500.0,9.996e-05,2]
[404080531,1769795439523,-500.0,9.996e-05,2]
[404080532,1769795439532,-500.0,9.996e-05,2]
[404080533,1769795439541,-6018.35316402,0.0001,2]
[404080534,1769795439553,-8257.26519725,0.0001,2]
[404080588,1769795440623,-31381.12402637,0.0001,2]
[404080604,1769795440782,-2e-08,0.0001,2]
[404080907,1769795443666,-762.58502262,0.0001,2]
[404081236,1769795446621,-4153.08446676,0.0001,2]
[404081399,1769795671822,990.46747386,9e-05,2]
[404081404,1769796003193,169.67,9e-05,2]
[404081405,1769796005222,169.65,8.981e-05,2]
[404081411,1769796219891,170.499589,8.405e-05,2]
[404081412,1769796220093,170.499589,8.914e-05,2]
[404081413,1769796256370,6901.12334814,8.49e-05,2]
[404081414,1769796256392,10000.01,8.49e-05,2]
[404081415,1769796256415,6505.47345546,8.49e-05,2]
[404081416,1769796266542,3494.53654454,9e-05,2]
[404081417,1769796266565,1505.46345546,9e-05,2]
[404081418,1769796274424,5000.0,9e-05,2]
[404081419,1769796283036,3494.54654454,9e-05,2]
[404081420,1769796283057,1505.45345546,9e-05,2]
[404081421,1769796298357,3365.26214395,9e-05,2]
[404081422,1769796306737,5000.0,9e-05,2]
[404081423,1769796315295,129.29440059,9e-05,2]
[404081424,1769796315318,416.90039262,9e-05,2]
[404081425,1769796323594,1121.42518312,9e-05,2]
[404081428,1769796450581,300.0,8.433e-05,2]
[404081431,1769796602839,152.36,9e-05,2]
[404081432,1769796603302,152.36,9e-05,2]
[404081433,1769796603668,152.36,9e-05,2]
[404081460,1769796638611,-152.36,9.1e-05,2]
[404081461,1769796638621,-152.36,9.1e-05,2]
[404081462,1769796638631,-152.36,9.1e-05,2]
[404081463,1769796638641,-547.0,9.1e-05,2]
[404081464,1769796638653,-967.43095744,9.151e-05,2]
[404081465,1769796638666,-232.56904256,9.151e-05,2]
[404081466,1769796638676,-150.0,9.152e-05,2]
[404081467,1769796638686,-300.0,9.152e-05,2]
[404081468,1769796638694,-300.0,9.152e-05,2]
[404081469,1769796638703,-300.0,9.152e-05,2]
[404081470,1769796638712,-300.0,9.152e-05,2]
[404081471,1769796638721,-936.3255245,9.153e-05,2]
[404081472,1769796638731,-500.0,9.153e-05,2]
[404081473,1769796638741,-500.0,9.153e-05,2]
[404081474,1769796638751,-481.72165578,9.153e-05,2]
[404081475,1769796638760,-169.67,9.2e-05,2]
[404081476,1769796638770,-152.36,9.2e-05,2]
[404081477,1769796638784,-152.36,9.2e-05,2]
[404081478,1769796638793,-152.36,9.2e-05,2]
[404081479,1769796638804,-152.36,9.3e-05,2]
[404081480,1769796638814,-152.36,9.3e-05,2]
[404081481,1769796638830,-152.36,9.3e-05,2]
[404081482,1769796638840,-140.40009046,9.4e-05,2]
[404081483,1769796638853,-29.26990954,9.4e-05,2]
[404081484,1769796638863,-152.36,9.4e-05,2]
[404081485,1769796638873,-152.36,9.4e-05,2]
[404081486,1769796638882,-152.36,9.4e-05,2]
[404081487,1769796638892,-152.36,9.5e-05,2]
[404081488,1769796638901,-152.36,9.5e-05,2]
[404081489,1769796638910,-152.36,9.5e-05,2]
[404081490,1769796638920,-152.36,9.6e-05,2]
[404081491,1769796638929,-152.36,9.6e-05,2]
[404081492,1769796638938,-152.36,9.6e-05,2]
[404081493,1769796638948,-169.67,9.7e-05,2]
[404081494,1769796638958,-152.36,9.7e-05,2]
[404081495,1769796638968,-152.36,9.7e-05,2]
[404081496,1769796638978,-500.0,9.993e-05,2]
[404081497,1769796638988,-362.18519918,9.993e-05,2]
[404081498,1769796638998,-500.0,9.993e-05,2]
[404081499,1769796639008,-500.0,9.993e-05,2]
[404081500,1769796639018,-800.56440889,9.993e-05,2]
[404081501,1769796639028,-500.0,9.993e-05,2]
[404081502,1769796639040,-500.0,9.993e-05,2]
[404081503,1769796639049,-800.56440889,9.993e-05,2]
[404081504,1769796639060,-559.75653748,9.993e-05,2]
[404081505,1769796639070,-500.0,9.993e-05,2]
[404081506,1769796639079,-385.2422807,9.993e-05,2]
[404081507,1769796639088,-800.56440889,9.993e-05,2]
[404081508,1769796639099,-500.0,9.993e-05,2]
[404081509,1769796639108,-500.0,9.993e-05,2]
[404081510,1769796639117,-800.56440889,9.993e-05,2]
[404081511,1769796639127,-500.0,9.993e-05,2]
[404081512,1769796639137,-500.0,9.993e-05,2]
[404081513,1769796639146,-800.56440889,9.993e-05,2]
[404081514,1769796639156,-500.0,9.993e-05,2]
[404081515,1769796639166,-500.0,9.993e-05,2]
[404081516,1769796639175,-800.56440889,9.993e-05,2]
[404081517,1769796639185,-800.56440889,9.993e-05,2]
[404081518,1769796639194,-500.0,9.993e-05,2]
[404081519,1769796639203,-500.0,9.993e-05,2]
[404081520,1769796639212,-500.0,9.993e-05,2]
[404081521,1769796639222,-800.56440889,9.993e-05,2]
[404081522,1769796639231,-500.0,9.993e-05,2]
[404081523,1769796639241,-800.56440889,9.993e-05,2]
[404081524,1769796639250,-500.0,9.993e-05,2]
[404081525,1769796639262,-500.0,9.993e-05,2]
[404081526,1769796639272,-800.56440889,9.993e-05,2]
[404081527,1769796639283,-500.0,9.993e-05,2]
[404081528,1769796639293,-800.56440889,9.993e-05,2]
[404081529,1769796639303,-500.0,9.993e-05,2]
[404081530,1769796639312,-500.0,9.993e-05,2]
[404081531,1769796639322,-800.56440889,9.993e-05,2]
[404081532,1769796639331,-500.0,9.993e-05,2]
[404081533,1769796639341,-800.56440889,9.993e-05,2]
[404081534,1769796639350,-500.0,9.993e-05,2]
[404081535,1769796639360,-67.51940325,9.993e-05,2]
[404081536,1769796639372,-544.79095787,9.993e-05,2]
[404081608,1769796640776,-188.25404777,9.993e-05,2]
[404081610,1769796640789,-129.71505077,9.993e-05,2]
[404081616,1769796640831,-370.28494923,9.993e-05,2]
[404081618,1769796640840,-500.0,9.993e-05,2]
[404081620,1769796640851,-500.0,9.993e-05,2]
[404081622,1769796640861,-500.0,9.993e-05,2]
[404081624,1769796640871,-500.0,9.993e-05,2]
[404081626,1769796640880,-500.0,9.993e-05,2]
[404081628,1769796640889,-500.0,9.993e-05,2]
[404081630,1769796640899,-800.56440889,9.993e-05,2]
[404081632,1769796640908,-500.0,9.993e-05,2]
[404081634,1769796640918,-800.56440889,9.993e-05,2]
[404081636,1769796640927,-800.56440889,9.993e-05,2]
[404081638,1769796640937,-500.0,9.993e-05,2]
[404081640,1769796640946,-480.6334347,9.993e-05,2]
[404082257,1769796646941,-19.3665653,9.993e-05,2]
[404082259,1769796646951,-800.56440889,9.993e-05,2]
[404082261,1769796646961,-800.56440889,9.993e-05,2]
[404082263,1769796646971,-500.0,9.993e-05,2]
[404082265,1769796646981,-800.56440889,9.993e-05,2]
[404082267,1769796646991,-340.71525629,9.993e-05,2]
[404082270,1769796647000,-800.56440889,9.993e-05,2]
[404082272,1769796647010,-500.0,9.993e-05,2]
[404082274,1769796647020,-800.56440889,9.993e-05,2]
[404082275,1769796647029,-500.0,9.993e-05,2]
[404082278,1769796647040,-500.0,9.993e-05,2]
[404082280,1769796647050,-800.56440889,9.993e-05,2]
[404082282,1769796647059,-500.0,9.993e-05,2]
[404082283,1769796647069,-800.56440889,9.993e-05,2]
[404082286,1769796647078,-500.0,9.993e-05,2]
[404082288,1769796647088,-800.56440889,9.993e-05,2]
[404082290,1769796647099,-500.0,9.993e-05,2]
[404082292,1769796647109,-621.59531365,9.993e-05,2]
[404082446,1769796703216,500.0,9e-05,2]
[404082447,1769796711044,500.0,9e-05,2]
[404082448,1769796718894,500.0,9e-05,2]
[404082449,1769796823188,500.0,9e-05,2]
[404082450,1769796830964,500.0,9e-05,2]
[404082451,1769796838713,500.0,9e-05,2]
[404082452,1769796846446,500.0,9e-05,2]
[404082453,1769796943287,184.62805903,9e-05,2]
[404082456,1769797203696,152.38,9e-05,2]
[404082457,1769797302949,510.70770667,9e-05,2]
[404082459,1769797423020,500.0,9e-05,2]
[404082460,1769797453225,2856.88865856,8.736e-05,2]
[404082461,1769797453246,5257.12495984,8.736e-05,2]
[404082462,1769797504010,4742.88504016,9e-05,2]
[404082463,1769797504032,257.11495984,9e-05,2]
[404082464,1769797526472,5000.0,9e-05,2]
[404082466,1769797543076,500.0,9e-05,2]
[404082467,1769797549289,4242.89504016,9e-05,2]
[404082468,1769797549313,757.10495984,9e-05,2]
[404082469,1769797572146,5000.0,9e-05,2]
[404082470,1769797594459,4242.90504016,9e-05,2]
[404082471,1769797594483,757.09495984,9e-05,2]
[404082472,1769797616403,9242.91504016,8.753e-05,2]
[404082473,1769797616425,10000.01,8.753e-05,2]
[404082474,1769797616449,10000.01,8.753e-05,2]
[404082475,1769797616474,4871.99225184,8.753e-05,2]
[404082476,1769797625434,-496.67274574,9e-05,2]
[404082477,1769797629147,-152.48,9e-05,2]
[404082478,1769797629761,-4350.84725426,9e-05,2]
[404082480,1769797639823,1298.31549148,9e-05,2]
[404082481,1769797639852,3701.68450852,9e-05,2]
[404082487,1769797662310,5000.0,9e-05,2]
[404082490,1769797685309,1298.32549148,9e-05,2]
[404082491,1769797685334,3701.67450852,9e-05,2]
[404082496,1769797708167,5000.0,9e-05,2]
[404082500,1769797723593,1298.33549148,6.546e-05,2]
[404082501,1769797723616,468.78516873,6.546e-05,2]
[404082502,1769797730785,5000.0,9e-05,2]
[404082503,1769797753428,4531.22483127,9e-05,2]
[404082504,1769797753450,468.77516873,9e-05,2]
[404082505,1769797775810,5000.0,9e-05,2]
[404082506,1769797799827,4531.23483127,9e-05,2]
[404082507,1769797799849,468.76516873,9e-05,2]
[404082508,1769797802333,154.05,9e-05,2]
[404082509,1769797822192,5000.0,9e-05,2]
[404082548,1769797831700,-154.05,9.1e-05,2]
[404082550,1769797831710,-387.5534007,9.1e-05,2]
[404082552,1769797831721,-159.4465993,9.1e-05,2]
[404082553,1769797831733,-150.0,9.177e-05,2]
[404082555,1769797831743,-152.38,9.2e-05,2]
[404082557,1769797831753,-154.05,9.2e-05,2]
[404082559,1769797831762,-152.38,9.4e-05,2]
[404082561,1769797831771,-154.05,9.4e-05,2]
[404082563,1769797831780,-154.05,9.5e-05,2]
[404082564,1769797831790,-276.0,9.58e-05,2]
[404082566,1769797831799,-300.0,9.58e-05,2]
[404082568,1769797831809,-300.0,9.58e-05,2]
[404082571,1769797831821,-300.0,9.58e-05,2]
[404082573,1769797831831,-1200.0,9.58e-05,2]
[404082575,1769797831840,-500.0,9.581e-05,2]
[404082578,1769797831851,-150.0,9.581e-05,2]
[404082580,1769797831860,-275.14707318,9.581e-05,2]
[404082582,1769797831870,-150.0,9.581e-05,2]
[404082584,1769797831880,-150.0,9.581e-05,2]
[404082586,1769797831891,-205.51075619,9.581e-05,2]
[404082588,1769797831901,-150.0,9.583e-05,2]
[404082590,1769797831911,-150.0,9.583e-05,2]
[404082592,1769797831920,-500.0,9.583e-05,2]
[404082594,1769797831929,-500.0,9.583e-05,2]
[404082596,1769797831941,-150.0,9.583e-05,2]